[Event "FIDE World Rapid-ch Open 2018"]
[White "Amonatov, Farrukh"]
[Black "Artemiev, Vladislav"]
[Site "St. Petersburg"]
[Round "3.3"]
[Annotator "ChessBase"]
[Result "0-1"]
[Date "2018.12.26"]
[WhiteElo "2614"]
[BlackElo "2709"]
[PlyCount "64"]
[TimeControl "900+10"]

1. e4 {[%emt 0:0:0]} c5 {[%emt 0:0:0]} 2. Nf3 {[%emt 0:0:0]} d6 {[%emt 0:0:0]} 3. d4 {[%emt 0:0:0]} cxd4 {[%emt 0:0:0]} 4. Nxd4 {[%emt 0:0:1]} Nf6 {[%emt 0:0:1]} 5. Nc3 {[%emt 0:0:3]} a6 {[%emt 0:0:2]} 6. Bc4 {[%emt 0:0:9]
} e6 {[%emt 0:0:3]} 7. Bb3 {[%emt 0:0:3]} Nbd7 {[%emt 0:0:0]} 8. 0-0 {[%emt 0:0:12]} Nc5 {[%emt 0:0:2]} 9. Bg5 {[%emt 0:0:6]} Be7 {[%emt 0:0:18]
} 10. Re1 {[%emt 0:0:2]} 0-0 {[%emt 0:1:2]} 11. f4 {[%emt 0:0:0]} h6 {[%emt 0:0:18]} 12. Bh4 {[%emt 0:0:3]} Bd7 {[%emt 0:2:57]} 13. e5 {[%emt 0:0:8]} dxe5 {[%emt 0:0:9]} 14. fxe5 {[%emt 0:0:2]} Nd5 {[%emt 0:0:1]
} 15. Bxe7 {[%emt 0:0:11]} Nxe7 {[%emt 0:0:2]} 16. Ne4 {[%emt 0:0:9]
} Qc7 {[%emt 0:1:48]} 17. Qh5 {[%emt 0:1:32]} Nxb3 {[%emt 0:0:0]} 18. axb3 {[%emt 0:0:13]} Ng6 {[%emt 0:0:1]} 19. Nd6 {[%emt 0:0:30]} Rad8 {[%emt 0:0:45]} 20. Rad1 {[%emt 0:2:9]} Bc8 {[%emt 0:0:52]} 21. c3 {[%emt 0:2:35]
} Nxe5 {[%emt 0:0:42]} 22. Nxc8 {[%emt 0:0:10]} Nc6 {[%emt 0:0:0]} 23. Nxc6 {[%emt 0:6:58]} bxc6 {[%emt 0:0:3]} 24. Qc5 {[%emt 0:0:57]
} Qxc8 {[%emt 0:0:8]} 25. c4 {[%emt 0:0:3]} Qb7 {[%emt 0:0:43]} 26. b4 {[%emt 0:0:21]
} Rb8 {[%emt 0:0:2]} 27. Rd6 {[%emt 0:0:27]} Qxb4 {[%emt 0:0:0]} 28. Qxb4 {[%emt 0:0:1]} Rxb4 {[%emt 0:0:1]} 29. Rxc6 {[%emt 0:0:1]} Rxb2 {[%emt 0:0:9]} 30. Rxa6 {[%emt 0:0:5]} Rc2 {[%emt 0:0:2]} 31. Rc6 {[%emt 0:0:1]
} Rd8 {[%emt 0:0:10]} 32. Rf1 {[%emt 0:0:30]} Rdd2 {[%emt 0:0:0]} 0-1

[Event "FIDE World Rapid-ch Open 2018"]
[White "Harikrishna, Pentala"]
[Black "Shirov, Alexei"]
[Site "St. Petersburg"]
[Round "3.7"]
[Annotator "ChessBase"]
[Result "1/2-1/2"]
[Date "2018.12.26"]
[WhiteElo "2725"]
[BlackElo "2643"]
[PlyCount "183"]
[TimeControl "900+10"]

1. e4 {[%emt 0:0:0]} e5 {[%emt 0:0:0]} 2. Nf3 {[%emt 0:0:0]} Nc6 {[%emt 0:0:0]
} 3. Bc4 {[%emt 0:0:0]} Bc5 {[%emt 0:0:0]} 4. c3 {[%emt 0:0:0]} Nf6 {[%emt 0:0:2]} 5. d3 {[%emt 0:0:0]} 0-0 {[%emt 0:0:2]} 6. 0-0 {[%emt 0:0:1]
} d5 {[%emt 0:0:2]} 7. exd5 {[%emt 0:0:3]} Nxd5 {[%emt 0:0:0]} 8. a4 {[%emt 0:0:34]} a5 {[%emt 0:0:1]} 9. Re1 {[%emt 0:0:15]} Nb6 {[%emt 0:5:40]
} 10. Bb5 {[%emt 0:0:17]} f6 {[%emt 0:0:12]} 11. Nbd2 {[%emt 0:0:0]} Na7 {[%emt 0:1:22]} 12. d4 {[%emt 0:3:28]} exd4 {[%emt 0:0:2]} 13. Ne4 {[%emt 0:0:4]} Nxb5 {[%emt 0:2:14]} 14. Nxc5 {[%emt 0:2:1]} Qd5 {[%emt 0:0:2]
} 15. axb5 {[%emt 0:1:6]} Qxc5 {[%emt 0:0:2]} 16. Nxd4 {[%emt 0:0:24]
} Bd7 {[%emt 0:0:6]} 17. Be3 {[%emt 0:1:2]} Qd5 {[%emt 0:0:0]} 18. Bf4 {[%emt 0:0:55]} c5 {[%emt 0:3:46]} 19. bxc6 {[%emt 0:0:41]} Bxc6 {[%emt 0:0:2]} 20. Qg4 {[%emt 0:1:13]} Bd7 {[%emt 0:0:38]} 21. Qg3 {[%emt 0:0:2]
} a4 {[%emt 0:0:19]} 22. h4 {[%emt 0:0:37]} Rfe8 {[%emt 0:0:0]} 23. Rad1 {[%emt 0:0:37]} Rxe1+ {[%emt 0:0:15]} 24. Rxe1 {[%emt 0:0:1]} Re8 {[%emt 0:0:1]} 25. Rxe8+ {[%emt 0:0:22]} Bxe8 {[%emt 0:0:2]} 26. Qe3 {[%emt 0:0:18]
} Bf7 {[%emt 0:1:6]} 27. Qe7 {[%emt 0:1:12]} Nc4 {[%emt 0:0:0]} 28. Qb4 {[%emt 0:0:11]} h6 {[%emt 0:0:36]} 29. Qxa4 {[%emt 0:0:52]} Nxb2 {[%emt 0:0:2]} 30. Qc2 {[%emt 0:0:13]} Nc4 {[%emt 0:0:10]} 31. Qe2 {[%emt 0:1:2]
} Ne5 {[%emt 0:0:37]} 32. Bxe5 {[%emt 0:0:13]} Qxe5 {[%emt 0:0:0]} 33. Qxe5 {[%emt 0:0:10]} fxe5 {[%emt 0:0:2]} 34. Nf3 {[%emt 0:0:20]
} e4 {[%emt 0:0:10]} 35. Ne5 {[%emt 0:0:15]} Bd5 {[%emt 0:0:30]} 36. Kf1 {[%emt 0:0:11]
} Kf8 {[%emt 0:0:3]} 37. c4 {[%emt 0:0:29]} Be6 {[%emt 0:0:0]} 38. Ke2 {[%emt 0:0:1]} Ke7 {[%emt 0:0:1]} 39. Ke3 {[%emt 0:0:3]} Kd6 {[%emt 0:0:5]} 40. Kxe4 {[%emt 0:0:23]} Kc5 {[%emt 0:0:14]} 41. Kd3 {[%emt 0:0:2]
} b5 {[%emt 0:0:5]} 42. cxb5 {[%emt 0:0:2]} Kxb5 {[%emt 0:0:0]} 43. Kd4 {[%emt 0:0:46]} Kb6 {[%emt 0:0:4]} 44. Nd3 {[%emt 0:0:23]} Kc6 {[%emt 0:0:9]} 45. Ke5 {[%emt 0:0:3]} Bf7 {[%emt 0:0:4]} 46. f4 {[%emt 0:0:0]} Kd7 {[%emt 0:0:5]} 47. f5 {[%emt 0:0:12]} Ke7 {[%emt 0:0:3]} 48. Nf4 {[%emt 0:0:5]} Bb3 {[%emt 0:0:12]} 49. g3 {[%emt 0:0:16]} Kf7 {[%emt 0:0:0]} 50. Ng2 {[%emt 0:0:6]} Bd1 {[%emt 0:0:17]} 51. Ne3 {[%emt 0:0:4]} Be2 {[%emt 0:0:3]} 52. Nd5 {[%emt 0:0:19]} Bf3 {[%emt 0:0:3]} 53. Nf4 {[%emt 0:0:2]
} Bd1 {[%emt 0:0:5]} 54. Ne6 {[%emt 0:0:7]} Be2 {[%emt 0:0:0]} 55. Nd8+ {[%emt 0:0:11]} Ke7 {[%emt 0:0:1]} 56. Nc6+ {[%emt 0:0:2]} Kf7 {[%emt 0:0:2]} 57. Kf4 {[%emt 0:0:3]} Bd1 {[%emt 0:0:6]} 58. g4 {[%emt 0:0:4]
} Kf6 {[%emt 0:0:12]} 59. Ne5 {[%emt 0:0:41]} Be2 {[%emt 0:0:0]} 60. Ng6 {[%emt 0:0:19]} Bd1 {[%emt 0:0:3]} 61. g5+ {[%emt 0:0:4]} hxg5+ {[%emt 0:0:1]} 62. hxg5+ {[%emt 0:0:2]} Kf7 {[%emt 0:0:1]} 63. Ke5 {[%emt 0:0:8]} Bc2 {[%emt 0:0:19]} 64. Nf4 {[%emt 0:0:3]} Bb1 {[%emt 0:0:0]} 65. Nd5 {[%emt 0:0:11]} Bc2 {[%emt 0:0:17]} 66. Nc7 {[%emt 0:0:11]} Bb1 {[%emt 0:0:9]} 67. Ne6 {[%emt 0:0:8]} Kg8 {[%emt 0:0:19]} 68. Nd8 {[%emt 0:0:18]
} Kf8 {[%emt 0:0:4]} 69. Nb7 {[%emt 0:0:3]} Kf7 {[%emt 0:0:0]} 70. Nd6+ {[%emt 0:0:28]} Ke7 {[%emt 0:0:16]} 71. Nb5 {[%emt 0:0:9]} Kf7 {[%emt 0:0:4]} 72. Nc3 {[%emt 0:0:5]} Bc2 {[%emt 0:0:2]} 73. Nd5 {[%emt 0:0:2]
} Bb1 {[%emt 0:0:3]} 74. g6+ {[%emt 0:0:19]} Kf8 {[%emt 0:0:0]} 75. Nf4 {[%emt 0:0:5]} Bc2 {[%emt 0:0:12]} 76. Ne6+ {[%emt 0:0:4]} Kg8 {[%emt 0:0:3]} 77. Nd4 {[%emt 0:0:2]} Bb1 {[%emt 0:0:2]} 78. Kd6 {[%emt 0:0:7]
} Kf8 {[%emt 0:0:19]} 79. Ke6 {[%emt 0:0:4]} Ba2+ {[%emt 0:0:0]} 80. Kd7 {[%emt 0:0:15]} Bb1 {[%emt 0:0:2]} 81. Kd6 {[%emt 0:0:12]} Bd3 {[%emt 0:0:44]} 82. Ne6+ {[%emt 0:0:33]} Kg8 {[%emt 0:0:1]} 83. Ke5 {[%emt 0:0:3]
} Bb1 {[%emt 0:0:6]} 84. Nd4 {[%emt 0:0:19]} Kf8 {[%emt 0:0:0]} 85. Nb5 {[%emt 0:0:2]} Ke7 {[%emt 0:0:33]} 86. Nc3 {[%emt 0:0:2]} Bc2 {[%emt 0:0:3]} 87. Nd5+ {[%emt 0:0:8]} Kf8 {[%emt 0:0:2]} 88. Ne3 {[%emt 0:0:9]
} Bb1 {[%emt 0:0:3]} 89. Kd6 {[%emt 0:0:3]} Ba2 {[%emt 0:0:0]} 90. Nc2 {[%emt 0:0:15]} Bb1 {[%emt 0:0:4]} 91. Nd4 {[%emt 0:0:1]} Bd3 {[%emt 0:0:12]} 92. Kd5 {[%emt 0:0:23]} 1/2-1/2

[Event "FIDE World Rapid-ch Open 2018"]
[White "Kamsky, Gata"]
[Black "Timofeev, Artyom"]
[Site "St. Petersburg"]
[Round "3.8"]
[Annotator "ChessBase"]
[Result "1/2-1/2"]
[Date "2018.12.26"]
[WhiteElo "2666"]
[BlackElo "2589"]
[PlyCount "29"]
[TimeControl "900+10"]

1. d4 {[%emt 0:0:0]} Nf6 {[%emt 0:0:0]} 2. Nf3 {[%emt 0:0:0]} g6 {[%emt 0:0:0]
} 3. c3 {[%emt 0:0:5]} Bg7 {[%emt 0:0:7]} 4. Bf4 {[%emt 0:0:0]} b6 {[%emt 0:0:28]} 5. e3 {[%emt 0:0:11]} Bb7 {[%emt 0:0:5]} 6. a4 {[%emt 0:0:3]
} a6 {[%emt 0:1:14]} 7. Nbd2 {[%emt 0:0:13]} d6 {[%emt 0:0:20]
} 8. h3 {[%emt 0:0:2]} c5 {[%emt 0:0:18]} 9. Be2 {[%emt 0:0:30]} 0-0 {[%emt 0:0:6]
} 10. 0-0 {[%emt 0:0:5]} Nc6 {[%emt 0:0:16]} 11. Bh2 {[%emt 0:0:0]} cxd4 {[%emt 0:3:3]} 12. exd4 {[%emt 0:0:3]} d5 {[%emt 0:0:4]} 13. Bd3 {[%emt 0:1:29]} Nd7 {[%emt 0:0:15]} 14. Re1 {[%emt 0:0:8]} Re8 {[%emt 0:0:5]
} 15. Nb3 {[%emt 0:8:40]} 1/2-1/2

[Event "FIDE World Rapid-ch Open 2018"]
[White "Andreikin, Dmitry"]
[Black "Yudin, Sergei"]
[Site "St. Petersburg"]
[Round "3.10"]
[Annotator "ChessBase"]
[Result "1-0"]
[Date "2018.12.26"]
[WhiteElo "2719"]
[BlackElo "2507"]
[PlyCount "133"]
[TimeControl "900+10"]

1. Nf3 {[%emt 0:0:0]} e6 {[%emt 0:0:0]} 2. c4 {[%emt 0:0:0]} d5 {[%emt 0:0:0]} 3. e3 {[%emt 0:0:0]} c6 {[%emt 0:0:4]} 4. b3 {[%emt 0:0:8]} f5 {[%emt 0:0:11]
} 5. Be2 {[%emt 0:0:38]} Nf6 {[%emt 0:0:5]} 6. 0-0 {[%emt 0:0:0]} Nbd7 {[%emt 0:0:22]} 7. cxd5 {[%emt 0:0:29]} exd5 {[%emt 0:0:12]} 8. Qc2 {[%emt 0:0:2]} g6 {[%emt 0:1:5]} 9. Bb2 {[%emt 0:0:14]} Bd6 {[%emt 0:0:0]} 10. d3 {[%emt 0:0:52]} 0-0 {[%emt 0:0:15]} 11. Nbd2 {[%emt 0:0:3]} Re8 {[%emt 0:2:27]} 12. Rae1 {[%emt 0:0:49]} Bf8 {[%emt 0:2:43]} 13. e4 {[%emt 0:0:16]
} Bg7 {[%emt 0:0:37]} 14. Nd4 {[%emt 0:2:4]} fxe4 {[%emt 0:0:0]} 15. dxe4 {[%emt 0:0:3]} Nf8 {[%emt 0:1:30]} 16. exd5 {[%emt 0:0:55]} cxd5 {[%emt 0:1:5]} 17. Bb5 {[%emt 0:1:42]} Rxe1 {[%emt 0:0:35]} 18. Rxe1 {[%emt 0:0:2]
} Bd7 {[%emt 0:0:42]} 19. Qc5 {[%emt 0:0:36]} Bxb5 {[%emt 0:0:0]} 20. Nxb5 {[%emt 0:0:50]} b6 {[%emt 0:1:32]} 21. Qe7 {[%emt 0:1:1]} Qxe7 {[%emt 0:0:33]} 22. Rxe7 {[%emt 0:0:2]} N8d7 {[%emt 0:0:6]} 23. Nc7 {[%emt 0:1:59]
} Rc8 {[%emt 0:0:10]} 24. Nxd5 {[%emt 0:0:2]} Rc2 {[%emt 0:0:0]} 25. Nc4 {[%emt 0:0:2]} Bf8 {[%emt 0:0:32]} 26. Rxd7 {[%emt 0:0:48]} Nxd7 {[%emt 0:0:6]} 27. Nde3 {[%emt 0:0:2]} Rxb2 {[%emt 0:0:12]} 28. Nxb2 {[%emt 0:0:2]} Kf7 {[%emt 0:0:1]} 29. Kf1 {[%emt 0:0:10]} Ke6 {[%emt 0:0:0]} 30. Ke2 {[%emt 0:0:3]} Nc5 {[%emt 0:0:7]} 31. f3 {[%emt 0:0:25]} Bd6 {[%emt 0:0:2]} 32. g3 {[%emt 0:0:2]} h5 {[%emt 0:0:3]} 33. Nd3 {[%emt 0:0:0]} Nd7 {[%emt 0:0:17]} 34. f4 {[%emt 0:0:6]} Nf6 {[%emt 0:0:20]} 35. Kf3 {[%emt 0:0:7]} b5 {[%emt 0:0:2]} 36. h3 {[%emt 0:0:18]} Nd5 {[%emt 0:0:0]} 37. Nd1 {[%emt 0:3:35]} a5 {[%emt 0:0:2]} 38. g4 {[%emt 0:0:15]} hxg4+ {[%emt 0:0:3]} 39. hxg4 {[%emt 0:0:1]} a4 {[%emt 0:0:11]} 40. Ke4 {[%emt 0:0:33]
} Nf6+ {[%emt 0:0:6]} 41. Kf3 {[%emt 0:0:1]} Nd5 {[%emt 0:0:0]} 42. bxa4 {[%emt 0:0:35]} bxa4 {[%emt 0:0:2]} 43. N3b2 {[%emt 0:0:27]} a3 {[%emt 0:0:53]} 44. Nc4 {[%emt 0:0:3]} Be7 {[%emt 0:0:3]} 45. g5 {[%emt 0:0:35]
} Bf8 {[%emt 0:0:36]} 46. Ke4 {[%emt 0:0:18]} Nb4 {[%emt 0:0:0]} 47. Nc3 {[%emt 0:0:30]} Bg7 {[%emt 0:0:7]} 48. Nb5 {[%emt 0:0:35]} Nxa2 {[%emt 0:0:3]} 49. Ncxa3 {[%emt 0:0:9]} Nb4 {[%emt 0:0:6]} 50. Nc4 {[%emt 0:0:5]
} Nc6 {[%emt 0:0:7]} 51. Nc7+ {[%emt 0:0:4]} Kd7 {[%emt 0:0:0]} 52. Nd5 {[%emt 0:0:2]} Ke6 {[%emt 0:0:2]} 53. Nc7+ {[%emt 0:0:10]} Kd7 {[%emt 0:0:1]} 54. Na6 {[%emt 0:0:1]} Ke6 {[%emt 0:0:46]} 55. Nc5+ {[%emt 0:0:3]
} Ke7 {[%emt 0:0:1]} 56. Nd3 {[%emt 0:0:8]} Ke6 {[%emt 0:0:0]} 57. Nce5 {[%emt 0:0:24]} Ne7 {[%emt 0:0:15]} 58. Nc5+ {[%emt 0:0:15]} Kd6 {[%emt 0:0:2]} 59. Nb7+ {[%emt 0:0:8]} Kc7 {[%emt 0:0:3]} 60. Na5 {[%emt 0:0:16]
} Kd6 {[%emt 0:0:3]} 61. Nb3 {[%emt 0:0:7]} Bxe5 {[%emt 0:0:0]} 62. fxe5+ {[%emt 0:0:2]} Kc6 {[%emt 0:0:7]} 63. Nd4+ {[%emt 0:0:9]} Kd7 {[%emt 0:0:3]} 64. Ne2 {[%emt 0:0:7]} Kc6 {[%emt 0:0:23]} 65. Nf4 {[%emt 0:0:2]
} Kd7 {[%emt 0:0:13]} 66. Kd4 {[%emt 0:0:8]} Kc6 {[%emt 0:0:0]} 67. Kc4 {[%emt 0:0:7] Kd5+} 1-0

[Event "FIDE World Rapid-ch Open 2018"]
[White "Alekseenko, Kirill"]
[Black "Dubov, Daniil"]
[Site "St. Petersburg"]
[Round "3.11"]
[Annotator "ChessBase"]
[Result "1/2-1/2"]
[Date "2018.12.26"]
[WhiteElo "2638"]
[BlackElo "2703"]
[PlyCount "51"]
[TimeControl "900+10"]

1. e4 {[%emt 0:0:0]} c5 {[%emt 0:0:0]} 2. Nf3 {[%emt 0:0:0]} Nc6 {[%emt 0:0:0]
} 3. d4 {[%emt 0:0:0]} cxd4 {[%emt 0:0:0]} 4. Nxd4 {[%emt 0:0:0]} Nf6 {[%emt 0:0:0]} 5. Nc3 {[%emt 0:0:1]} e5 {[%emt 0:0:0]} 6. Ndb5 {[%emt 0:0:4]} d6 {[%emt 0:0:0]} 7. Bg5 {[%emt 0:0:9]} a6 {[%emt 0:0:0]} 8. Na3 {[%emt 0:0:4]} b5 {[%emt 0:0:0]} 9. Nd5 {[%emt 0:0:3]} Be7 {[%emt 0:0:0]} 10. Bxf6 {[%emt 0:0:10]} Bxf6 {[%emt 0:0:2]} 11. c4 {[%emt 0:0:5]
} b4 {[%emt 0:0:1]} 12. Nc2 {[%emt 0:0:3]} 0-0 {[%emt 0:0:0]} 13. g3 {[%emt 0:0:6]} Rb8 {[%emt 0:0:8]} 14. Bg2 {[%emt 0:2:0]} b3 {[%emt 0:1:11]
} 15. axb3 {[%emt 0:0:29]} Rxb3 {[%emt 0:0:4]} 16. Ra2 {[%emt 0:0:17]
} Be6 {[%emt 0:1:43]} 17. Nce3 {[%emt 0:1:31]} Nd4 {[%emt 0:0:0]} 18. 0-0 {[%emt 0:0:39]} Bg5 {[%emt 0:2:0]} 19. h4 {[%emt 0:1:23]} Bxe3 {[%emt 0:0:32]} 20. Nxe3 {[%emt 0:0:21]} Qb6 {[%emt 0:0:55]} 21. Qa1 {[%emt 0:0:58]
} a5 {[%emt 0:6:1]} 22. Rxa5 {[%emt 0:0:11]} Rxb2 {[%emt 0:0:0]} 23. Ra6 {[%emt 0:0:5]} Qb4 {[%emt 0:0:24]} 24. Qe1 {[%emt 0:2:18]} Qxe1 {[%emt 0:2:35]} 25. Rxe1 {[%emt 0:0:2]} Nc2 {[%emt 0:0:1]} 26. Nxc2 {[%emt 0:0:7]
} 1/2-1/2

[Event "FIDE World Rapid-ch Open 2018"]
[White "Gelfand, Boris"]
[Black "Roiz, Michael"]
[Site "St. Petersburg"]
[Round "3.12"]
[Annotator "ChessBase"]
[Result "1/2-1/2"]
[Date "2018.12.26"]
[WhiteElo "2673"]
[BlackElo "2605"]
[PlyCount "61"]
[TimeControl "900+10"]

1. c4 {[%emt 0:0:0]} e5 {[%emt 0:0:12]} 2. g3 {[%emt 0:0:0]} Nf6 {[%emt 0:0:0]} 3. Bg2 {[%emt 0:0:8]} d5 {[%emt 0:0:22]} 4. cxd5 {[%emt 0:0:2]} Nxd5 {[%emt 0:0:2]} 5. Nc3 {[%emt 0:0:15]} Nxc3 {[%emt 0:0:20]} 6. bxc3 {[%emt 0:0:1]
} c5 {[%emt 0:0:2]} 7. Nf3 {[%emt 0:0:45]} Nc6 {[%emt 0:0:3]
} 8. 0-0 {[%emt 0:0:3]} Be7 {[%emt 0:0:2]} 9. d3 {[%emt 0:0:15]} 0-0 {[%emt 0:0:11]
} 10. Rb1 {[%emt 0:0:41]} Qe8 {[%emt 0:1:25]} 11. Nd2 {[%emt 0:0:0]} Rb8 {[%emt 0:0:14]} 12. a4 {[%emt 0:3:7]} Be6 {[%emt 0:0:50]} 13. Nc4 {[%emt 0:0:9]} b6 {[%emt 0:1:6]} 14. Bxc6 {[%emt 0:1:41]} Qxc6 {[%emt 0:0:1]
} 15. Nxe5 {[%emt 0:0:1]} Qd5 {[%emt 0:0:18]} 16. f4 {[%emt 0:0:0]} f6 {[%emt 0:3:33]} 17. Nf3 {[%emt 0:1:38]} c4 {[%emt 0:0:26]} 18. Rb5 {[%emt 0:0:13]} Qd7 {[%emt 0:0:12]} 19. Be3 {[%emt 0:0:32]} Rfe8 {[%emt 0:1:57]
} 20. Bd4 {[%emt 0:0:33]} Bf8 {[%emt 0:0:15]} 21. Rb2 {[%emt 0:0:0]} cxd3 {[%emt 0:0:22]} 22. exd3 {[%emt 0:0:8]} Bd5 {[%emt 0:0:1]} 23. Rbf2 {[%emt 0:0:35]} Kh8 {[%emt 0:0:26]} 24. Nh4 {[%emt 0:0:31]} Bc6 {[%emt 0:0:20]
} 25. Qh5 {[%emt 0:1:1]} Kg8 {[%emt 0:0:33]} 26. Nf3 {[%emt 0:0:0]} Bxa4 {[%emt 0:0:41]} 27. g4 {[%emt 0:0:2]} Bb5 {[%emt 0:1:16]} 28. Rd1 {[%emt 0:1:2]} Bc6 {[%emt 0:0:39]} 29. g5 {[%emt 0:1:8]} Qf5 {[%emt 0:0:0]} 30. Qh4 {[%emt 0:0:9]} fxg5 {[%emt 0:0:24]} 31. Qxg5 {[%emt 0:0:9]
} 1/2-1/2

[Event "FIDE World Rapid-ch Open 2018"]
[White "Tsydypov, Zhamsaran"]
[Black "Oparin, Grigoriy"]
[Site "St. Petersburg"]
[Round "3.13"]
[Annotator "ChessBase"]
[Result "1/2-1/2"]
[Date "2018.12.26"]
[WhiteElo "2529"]
[BlackElo "2613"]
[PlyCount "111"]
[TimeControl "900+10"]

1. e4 {[%emt 0:0:0]} e5 {[%emt 0:0:0]} 2. Nf3 {[%emt 0:0:0]} Nc6 {[%emt 0:0:0]
} 3. Bc4 {[%emt 0:0:2]} Nf6 {[%emt 0:0:0]} 4. d3 {[%emt 0:0:0]} Bc5 {[%emt 0:0:0]} 5. c3 {[%emt 0:0:22]} 0-0 {[%emt 0:0:2]} 6. 0-0 {[%emt 0:0:16]
} d6 {[%emt 0:0:3]} 7. Nbd2 {[%emt 0:0:18]} a5 {[%emt 0:0:15]
} 8. h3 {[%emt 0:1:19]} Be6 {[%emt 0:0:59]} 9. Bb5 {[%emt 0:0:9]} Ba7 {[%emt 0:0:46]
} 10. Re1 {[%emt 0:1:22]} Ne7 {[%emt 0:0:6]} 11. d4 {[%emt 0:0:0]} c6 {[%emt 0:0:18]} 12. Bf1 {[%emt 0:0:31]} Ng6 {[%emt 0:0:6]} 13. b3 {[%emt 0:0:13]} Re8 {[%emt 0:0:55]} 14. Bb2 {[%emt 0:0:9]} Qc7 {[%emt 0:0:0]} 15. c4 {[%emt 0:0:16]} exd4 {[%emt 0:0:44]} 16. Nxd4 {[%emt 0:0:14]} Rad8 {[%emt 0:0:3]} 17. Rc1 {[%emt 0:1:0]} Bc8 {[%emt 0:0:59]} 18. Qf3 {[%emt 0:1:53]
} Ne5 {[%emt 0:0:36]} 19. Qg3 {[%emt 0:0:46]} Qe7 {[%emt 0:0:0]} 20. Nf5 {[%emt 0:0:43]} Bxf5 {[%emt 0:0:8]} 21. exf5 {[%emt 0:0:2]} h6 {[%emt 0:2:6]} 22. Be2 {[%emt 0:5:16]} Qd7 {[%emt 0:1:0]} 23. Qf4 {[%emt 0:0:17]
} Bb8 {[%emt 0:0:16]} 24. Ne4 {[%emt 0:0:17]} Nxe4 {[%emt 0:0:0]} 25. Qxe4 {[%emt 0:0:1]} d5 {[%emt 0:0:13]} 26. cxd5 {[%emt 0:0:9]} cxd5 {[%emt 0:0:2]} 27. Qd4 {[%emt 0:0:21]} f6 {[%emt 0:4:56]} 28. Bh5 {[%emt 0:0:10]
} Re7 {[%emt 0:0:26]} 29. Ba3 {[%emt 0:0:20]} Nc6 {[%emt 0:0:0]} 30. Rxe7 {[%emt 0:0:34]} Nxe7 {[%emt 0:0:2]} 31. Qb6 {[%emt 0:0:38]} Nc6 {[%emt 0:0:17]} 32. Be2 {[%emt 0:1:26]} Ba7 {[%emt 0:0:19]} 33. Qb5 {[%emt 0:0:12]
} Qxf5 {[%emt 0:0:11]} 34. Bf3 {[%emt 0:0:5]} Nd4 {[%emt 0:0:0]} 35. Qxa5 {[%emt 0:0:42]} Nxf3+ {[%emt 0:0:6]} 36. gxf3 {[%emt 0:0:1]} Ra8 {[%emt 0:0:13]} 37. Kg2 {[%emt 0:0:6]} Qg6+ {[%emt 0:1:21]} 38. Kh1 {[%emt 0:0:14]
} Kh7 {[%emt 0:0:30]} 39. Bc5 {[%emt 0:0:28]} Qg5 {[%emt 0:0:0]} 40. Rg1 {[%emt 0:0:11]} Qf5 {[%emt 0:0:1]} 41. Rg3 {[%emt 0:0:20]} Bb8 {[%emt 0:0:28]} 42. Qxa8 {[%emt 0:0:11]} Bxg3 {[%emt 0:0:1]} 43. fxg3 {[%emt 0:0:13]
} Qxf3+ {[%emt 0:0:1]} 44. Kh2 {[%emt 0:0:8]} Qe2+ {[%emt 0:0:0]} 45. Kg1 {[%emt 0:0:1]} Qe1+ {[%emt 0:0:7]} 46. Kg2 {[%emt 0:0:1]} Qe4+ {[%emt 0:0:2]} 47. Kg1 {[%emt 0:0:2]} Qb1+ {[%emt 0:0:34]} 48. Kg2 {[%emt 0:0:3]
} Qe4+ {[%emt 0:0:10]} 49. Kg1 {[%emt 0:0:2]} d4 {[%emt 0:0:0]} 50. Qa5 {[%emt 0:0:45]} Qe3+ {[%emt 0:0:5]} 51. Kg2 {[%emt 0:0:2]} Qe2+ {[%emt 0:0:3]} 52. Kg1 {[%emt 0:0:5]} d3 {[%emt 0:0:13]} 53. Bb4 {[%emt 0:0:5]
} Qe3+ {[%emt 0:0:10]} 54. Kg2 {[%emt 0:0:2]} Qe4+ {[%emt 0:0:0]} 55. Kf2 {[%emt 0:0:9]} Qe2+ {[%emt 0:0:3]} 56. Kg1 {[%emt 0:0:1]} 1/2-1/2

[Event "FIDE World Rapid-ch Open 2018"]
[White "Cheparinov, Ivan"]
[Black "Khanin, Semen"]
[Site "St. Petersburg"]
[Round "3.14"]
[Annotator "ChessBase"]
[Result "1/2-1/2"]
[Date "2018.12.26"]
[WhiteElo "2709"]
[BlackElo "2514"]
[PlyCount "109"]
[TimeControl "900+10"]

1. Nf3 {[%emt 0:0:0]} d5 {[%emt 0:0:0]} 2. d4 {[%emt 0:0:0]} Nf6 {[%emt 0:0:0]
} 3. c4 {[%emt 0:0:0]} e6 {[%emt 0:0:2]} 4. g3 {[%emt 0:0:0]} dxc4 {[%emt 0:0:12]} 5. Bg2 {[%emt 0:0:2]} Bd7 {[%emt 0:0:1]} 6. 0-0 {[%emt 0:1:1]} Bc6 {[%emt 0:0:3]} 7. Qc2 {[%emt 0:0:10]} b5 {[%emt 0:0:0]} 8. Nc3 {[%emt 0:0:21]} Nbd7 {[%emt 0:0:19]} 9. e4 {[%emt 0:0:41]} Be7 {[%emt 0:1:15]
} 10. d5 {[%emt 0:1:49]} exd5 {[%emt 0:0:13]} 11. Nd4 {[%emt 0:0:0]} Bb7 {[%emt 0:0:2]} 12. exd5 {[%emt 0:0:4]} Nc5 {[%emt 0:3:16]} 13. Nc6 {[%emt 0:1:13]} Bxc6 {[%emt 0:0:6]} 14. dxc6 {[%emt 0:0:2]} a6 {[%emt 0:0:28]
} 15. Be3 {[%emt 0:2:36]} Qd3 {[%emt 0:0:24]} 16. Rac1 {[%emt 0:1:33]
} 0-0 {[%emt 0:0:12]} 17. Rfd1 {[%emt 0:1:43]} Qxc2 {[%emt 0:0:0]} 18. Rxc2 {[%emt 0:0:1]} Rad8 {[%emt 0:0:37]} 19. Rcd2 {[%emt 0:0:0]} Rxd2 {[%emt 0:0:6]} 20. Rxd2 {[%emt 0:0:1]} Nd3 {[%emt 0:0:14]} 21. a4 {[%emt 0:0:41]} Bb4 {[%emt 0:0:50]} 22. axb5 {[%emt 0:0:11]} axb5 {[%emt 0:0:2]
} 23. Re2 {[%emt 0:1:13]} Rb8 {[%emt 0:3:32]} 24. Ba7 {[%emt 0:0:0]} Re8 {[%emt 0:0:1]} 25. Rxe8+ {[%emt 0:0:24]} Nxe8 {[%emt 0:0:2]} 26. Nxb5 {[%emt 0:0:12]} Nxb2 {[%emt 0:0:9]} 27. Bd4 {[%emt 0:0:15]} Nd3 {[%emt 0:0:19]
} 28. Bd5 {[%emt 0:0:9]} Bc5 {[%emt 0:0:54]} 29. Bxc4 {[%emt 0:1:0]
} Bxd4 {[%emt 0:0:3]} 30. Bxd3 {[%emt 0:0:3]} Bb6 {[%emt 0:0:0]} 31. Kg2 {[%emt 0:0:4]} Kf8 {[%emt 0:0:17]} 32. f4 {[%emt 0:0:6]} g6 {[%emt 0:0:22]} 33. g4 {[%emt 0:0:10]} Ke7 {[%emt 0:0:39]} 34. Kf3 {[%emt 0:0:8]
} Ng7 {[%emt 0:0:41]} 35. Bc4 {[%emt 0:1:5]} h5 {[%emt 0:0:0]} 36. h3 {[%emt 0:0:38]} hxg4+ {[%emt 0:0:2]} 37. hxg4 {[%emt 0:0:1]} Ne6 {[%emt 0:1:39]} 38. Ke4 {[%emt 0:0:11]} Nc5+ {[%emt 0:0:14]} 39. Kd5 {[%emt 0:0:41]
} Ne6 {[%emt 0:0:2]} 40. Ke4 {[%emt 0:0:1]} Nc5+ {[%emt 0:0:0]} 41. Ke5 {[%emt 0:0:7]} f6+ {[%emt 0:0:18]} 42. Kd5 {[%emt 0:0:1]} Ne6 {[%emt 0:0:3]} 43. Ke4 {[%emt 0:0:36]} Nc5+ {[%emt 0:0:30]} 44. Kf3 {[%emt 0:0:18]
} Ne6 {[%emt 0:0:1]} 45. Ke4 {[%emt 0:0:19]} Nc5+ {[%emt 0:0:0]} 46. Kd5 {[%emt 0:0:1]} Ne6 {[%emt 0:0:1]} 47. f5 {[%emt 0:0:3]} gxf5 {[%emt 0:0:20]} 48. gxf5 {[%emt 0:0:1]} Ng5 {[%emt 0:0:15]} 49. Be2 {[%emt 0:0:6]
} Nf7 {[%emt 0:0:9]} 50. Nc3 {[%emt 0:0:18]} Ba5 {[%emt 0:0:0]} 51. Na4 {[%emt 0:0:17]} Nd6 {[%emt 0:0:9]} 52. Bd3 {[%emt 0:0:1]} Bb4 {[%emt 0:0:17]} 53. Bc2 {[%emt 0:0:15]} Nc8 {[%emt 0:0:8]} 54. Bd3 {[%emt 0:0:28]
} Nb6+ {[%emt 0:0:19]} 55. Nxb6 {[%emt 0:0:2]} 1/2-1/2